Cogmind - Beta 13 @@@ ROGUE MODE // 2024.06.25 @ 15:23:45 Player: Jazzer Result: Destroyed by G-34 Mercenary with Small Laser Performance ------------- Evolutions (0) 0 Regions Visited (1) 200 Robots Destroyed (15) 75 Value Destroyed (327) 327 Prototype IDs (0) 0 Alien Tech Used (0) 0 Bonus (0) 0 TOTAL SCORE: 602 Bonus ------- None Cogmind --------- Core Integrity 0/250 Matter 290/300 Energy 100/100 System Corruption 7% Temperature Cool (6) Movement Rolling (185) Ox7 Location -10/Materials Parts ------- > --- POWER (1) -------- (None) > --- PROPULSION (2) --- Wheel > --- UTILITY (2) ------ Huge Storage Unit Signal Interpreter > --- WEAPON (2) ------- (None) > --- INVENTORY (25) --- Light Ion Engine Aluminum Leg Aluminum Leg Aluminum Leg Aluminum Leg Aluminum Leg Aluminum Leg Wheel Heat Sink Small Storage Unit Improved Terrain Scanner Hacking Suite EM Pulse Gun Small Laser Peak State ------------ > --- POWER ------------ Ion Engine > --- PROPULSION ------- Aluminum Leg Aluminum Leg > --- UTILITY ---------- Small Storage Unit Improved Terrain Scanner > --- WEAPON ----------- EM Pulse Gun Light Assault Rifle > --- INVENTORY -------- Light Ion Engine Light Treads Light Treads Compact Wheel Compact Wheel EM Pulse Gun [Rating: 9] Favorites ----------- Power Ion Engine Engine Ion Engine Propulsion Compact Wheel Leg Aluminum Leg Wheel Compact Wheel Utility Improved Terrain Scanner Device Improved Terrain Scanner Storage Huge Storage Unit Processor Signal Interpreter Weapon Light Assault Rifle Energy Gun EM Pulse Gun Ballistic Gun Light Assault Rifle Build | -11 -10 ------- Run | Yrd Mat Slots Evolved . | . . Power . | . . Propulsion . | . . Utility . | . . Weapon . | . . Parts Attached 6 | 1 5 Power . | . . Engine . | . . Core . | . . Reactor . | . . Propulsion 3 | . 3 Treads . | . . Leg . | . . Wheel 3 | . 3 Hover . | . . Flight . | . . Utility 3 | 1 2 Device 1 | 1 . Storage 1 | . 1 Processor 1 | . 1 Hackware . | . . Protection . | . . Artifact . | . . Weapon . | . . Energy Gun . | . . Energy Cannon . | . . Ballistic Gun . | . . Ballistic Cannon . | . . Launcher . | . . Special Weapon . | . . Impact Weapon . | . . Slashing Weapon . | . . Piercing Weapon . | . . Special Melee Weapon . | . . Unidentified Prototypes . | . . Corrupted Parts 2 | 1 1 System Corruption 3 | 2 1 Parts Lost 5 | . 5 Power 1 | . 1 Propulsion 2 | . 2 Utility . | . . Weapon 2 | . 2 Highest Loss Streak 4 | . 4 To Critical Strikes . | . . Average Slot Usage (%) 91 | . 91 Engine 13 | . 13 Leg 5 | . 5 Wheel 15 | . 15 Device 13 | . 13 Storage 14 | . 14 Energy Gun 13 | . 13 Ballistic Gun 13 | . 13 Naked Turns . | . . Heaviest Build 89 | 14 89 Greatest Support 32 | 20 32 Greatest Overweight (x) 7 | . 7 Average Overweight (x) 2 | . 2 Largest Inventory Capacity 25 | 8 25 Average Capacity 20 | 8 21 Most Carried 15 | 7 15 Average Carried 9 | 6 9 Final Capacity 25 | 8 25 Final Carried 14 | 6 14 Class Distribution -------------------- 100% | Mutant Dominant Class ---------------- Mutant | -10/Materials Resources | -11 -10 ----------- Run | Yrd Mat Matter Collected 314 | 221 93 Remotely . | . . Salvage Created 584 | 132 452 Parts 41 | 6 35 Haulers Intercepted . | . . Recyclers Shooed 3 | . 3 Parts Field Recycled . | . . Retrieved Matter . | . . Parts Self-Destructed . | . . Prevented . | . . Kills | -11 -10 ------- Run | Yrd Mat Combat Hostiles Destroyed 7 | . 7 Guns 7 | . 7 Classes Destroyed 6 | 2 4 Worker 1 | . 1 Tunneler 3 | 2 1 Recycler 2 | 1 1 Operator 1 | . 1 Watcher 1 | . 1 Grunt 7 | . 7 Best Kill Streak 3 | 2 3 Combat Bots Only 2 | . 2 Max Kills in Single Turn 1 | 1 1 Gunslinging . | . . Exploded . | . . Melee . | . . Uniques/NPCs Destroyed . | . . Combat | -11 -10 -------- Run | Yrd Mat Hostile Shots Fired 53 | . 53 Missed 10 | . 10 Damage Taken 569 | . 569 Core 257 | . 257 Absorbed by Shields . | . . Core Remaining (%) 100 | 100 . Volleys Fired 46 | 11 35 Largest 2 | 2 2 Hottest 60 | 60 60 Shots Fired 93 | 22 71 Gun 93 | 22 71 Cannon . | . . Launcher . | . . Special . | . . Kinetic 46 | 11 35 Thermal . | . . Explosive . | . . Electromagnetic 47 | 11 36 Robot Hit Streak 7 | 3 7 Robot Miss Streak 4 | 3 4 Penetration Max . | . . Secondary Targets 1 | . 1 Max Gunslinging Chain 1 | . 1 Shots Hit Robots 53 | 12 41 Core Hits 30 | 5 25 Critical Kills . | . . Critical Parts Destroyed . | . . Critical Strikes . | . . Melee Attacks . | . . Impact . | . . Slashing . | . . Piercing . | . . Sneak Attacks . | . . Combat Hostiles . | . . Follow-up Attacks . | . . Damage Inflicted 589 | 125 464 Guns 543 | 125 418 Cannons . | . . Explosions 45 | . 45 Melee . | . . Ramming 1 | . 1 Kinetic 236 | 57 179 Thermal 45 | . 45 Explosive . | . . Electromagnetic 307 | 68 239 Impact . | . . Slashing . | . . Piercing . | . . Highest Corruption 7 | 2 7 Average Corruption 3 | 2 3 Corruption Purged . | . . Corruption Blocked . | . . Effects 15 | . 15 Message Errors 6 | . 6 Matter Fused 5 | . 5 Energy Discharges 2 | . 2 Data Loss (minor) 1 | . 1 Misfires 1 | . 1 Overload Shots . | . . Overflow Damage . | . . Projectiles . | . . Explosions . | . . Melee . | . . Knockbacks . | . . Impact . | . . Kinetic . | . . Secondary . | . . Self-Inflicted Damage 34 | . 34 Shots 1 | . 1 Rammed . | . . Targets Rammed 1 | . 1 Kicked 1 | . 1 Crushed . | . . Highest Temperature 139 | 40 139 Average Temperature 30 | 21 32 Received Heat Transfer 318 | . 318 Siege Activations . | . . Robots Corrupted . | . . Combat Hostiles . | . . Parts Fried . | . . Impact Corruptions . | . . Robots Melted . | . . Combat Hostiles . | . . Parts Melted . | . . Heat Transferred 100 | . 100 Parts Sabotaged . | . . Parts Stolen . | . . Parts Stripped . | . . Power Chain Reactions 1 | . 1 Alert | -11 -10 ------- Run | Yrd Mat Peak Influence 189 | 15 189 Initial 9 | . 9 Average 46 | 8 50 Maximum Alert Level . | . . Low Security (%) 100 | 100 100 Level 1 . | . . Level 2 . | . . Level 3 . | . . Level 4 . | . . Level 5 . | . . High Security . | . . Max Security . | . . Squads Dispatched 3 | . 3 Investigation 1 | . 1 Extermination . | . . Reinforcement 2 | . 2 Assault . | . . Garrison . | . . Intercept . | . . Searches Triggered . | . . Construction Impeded . | . . Haulers Reinforced . | . . Active Scanning Responses . | . . Cargo Convoy Interrupts . | . . Stealth | -11 -10 --------- Run | Yrd Mat Distress Signals 1 | . 1 Communications Jammed . | . . Distress Signals . | . . Times Spotted 18 | . 18 Peak Tracking Total 5 | . 5 Tactical Retreats . | . . Traps | -11 -10 ------- Run | Yrd Mat Traps Triggered 3 | . 3 Indirectly . | . . Trap Hack Attempts . | . . Triggered . | . . Disarmed . | . . Reprogrammed . | . . Reused . | . . Traps Extracted . | . . Installed . | . . Triggered . | . . Machines | -11 -10 ---------- Run | Yrd Mat Machines Disabled 1 | . 1 Max in Single Turn 1 | . 1 Machines Repaired . | . . Machines Dismantled . | . . Machines Sabotaged . | . . Overloaded Fab Kills . | . . Hacking | -11 -10 --------- Run | Yrd Mat Machines Accessed 5 | . 5 Terminals 4 | . 4 Fabricators . | . . Repair Stations 1 | . 1 Recycling Units . | . . Scanalyzers . | . . Garrison Access . | . . Total Hacks 6 | . 6 Successful 2 | . 2 Failed 4 | . 4 Catastrophic 2 | . 2 Database Lockouts . | . . Manual 6 | . 6 Terminals 5 | . 5 Fabricators . | . . Repair Stations 1 | . 1 Recycling Units . | . . Scanalyzers . | . . Garrison Access . | . . Terminal Hacks . | . . Fabricator Hacks . | . . Repair Station Hacks . | . . Recycling Unit Hacks . | . . Scanalyzer . | . . Garrison Access Hacks . | . . Unauthorized Hacks 2 | . 2 Terminals 1 | . 1 Botnet 1 | . 1 Fabricators . | . . Repair Stations 1 | . 1 Mechanics 1 | . 1 Recycling Units . | . . Scanalyzers . | . . Garrison Access . | . . Data Cores Recovered . | . . Used . | . . Hacking Detections 5 | . 5 Full Trace Events . | . . Feedback Events . | . . Feedback Blocked . | . . Robot Schematics Acquired . | . . Robots Built . | . . Authchips . | . . Time . | . . Total Robot Build Rating . | . . Part Schematics Acquired . | . . Parts Built . | . . Authchips . | . . Time . | . . Total Part Build Rating . | . . Parts Repaired . | . . Time . | . . Parts Recycled . | . . Recycled Matter . | . . Retrieved Matter . | . . Retrieved Components . | . . Parts Scanalyzed . | . . Part Schematics Acquired . | . . Parts Damaged . | . . Bothacking | -11 -10 ------------ Run | Yrd Mat Used RIF Installer . | . . Robots Hacked . | . . Non-combat . | . . Combat . | . . Robot Hacks Applied . | . . Relay Couplers Released . | . . Fabnet Peak Effective % . | . . Robots Rewired . | . . Allies Hacked . | . . Hacks Repelled . | . . Allies | -11 -10 -------- Run | Yrd Mat Total Allies . | . . Largest Group . | . . Highest-Rated Group . | . . Highest-Rated Ally . | . . Total Orders . | . . Ally Attacks . | . . Total Damage . | . . Kills . | . . Allies Corrupted . | . . Allies Melted . | . . Intel | -11 -10 ------- Run | Yrd Mat Robot Analysis Total . | . . Derelict Logs Recovered . | . . Drone Launches . | . . Drone Recoveries . | . . Exploration | -11 -10 ------------- Run | Yrd Mat Turns Passed 782 | 78 704 Spaces Moved 408 | 38 370 Core . | . . Treads . | . . Legs 135 | 38 97 Wheels 273 | . 273 Hover . | . . Flight . | . . Fastest Speed 120 | 120 120 Average Speed 144 | 120 147 Slowest Speed 185 | 120 185 Overloaded Moves . | . . Propulsion Burnouts . | . . Robots Hopped . | . . Cave-ins Triggered . | . . Exploration Rate (%) 36 | 4 69 Regions Visited 1 Branch Regions . Pre-discovered Areas . | . . Known Exits Taken . | . . Unknown Exits Taken 1 | 1 . Scrap Searched . | . . Spaces Dug . | . . Terrain Destroyed 4 | . 4 Melee . | . . Projectile . | . . AOE 4 | . 4 Terrain Rammed . | . . Walls Destroyed . | . . Machines Disabled . | . . Actions | -11 -10 --------- Run | Yrd Mat Total 514 | 50 464 Wait 40 | . 40 Move 407 | 37 370 Hop . | . . Pick Up 12 | 1 11 Fast Attach . | . . Attach 2 | 1 1 Detach . | . . Swap 4 | . 4 Drop 2 | . 2 Fire 46 | 11 35 Melee . | . . Ram . | . . Kick 1 | . 1 Crush . | . . Escape Stasis . | . . Rewire . | . . Trap . | . . Miscellaneous . | . . Route ------- -11/Scrapyard -10/Materials (discovered 2 exits: [*Mat] / [*Min]) History --------- Turn | Location | Event 1 | -11/Scrapyard | Discovered new exit (range 3) 79 | -11/Scrapyard | Entered Materials 317 | -10/Materials | Build established: Mutant 552 | -10/Materials | Discovered new exit (range 7) 754 | -10/Materials | Core integrity fell below 50% 771 | -10/Materials | Core integrity fell below 20% 776 | -10/Materials | Discovered new exit (range 9) 783 | -10/Materials | Destroyed by G-34 Mercenary with Small Laser Last Messages --------------- M005. 00723_ Acquired Wheel. 00740_ Connecting with Terminal... 00740_ Integrated Corrupted Signal Interpreter (+1). 00747_ Chain reaction triggered in Ion Engine. 00747_ Terminal disabled. 00749_ G-34 Mercenary destroyed. 00749_ Switching to secondary target: G-47 Trooper. 00750_ GSGK1D&T%LB8ZF FHX0N NNIDJ&XUKO8AH> 00751_ R-06 Scavenger collects Lgt. Ion Engine. 00756_ G-47 Trooper IFF system glitched. 00757_ EM Pulse Gun destroyed. 00761_ K-01 Serf collects debris. 00761_ Lgt. Assault Rifle destroyed. 00765_ K-01 Serf collects debris. 00768_ Ion Engine destroyed. 00768_ K-01 Serf collects debris. 00770_ Critical hit (Burn: +37). 00771_ Com. Wheel destroyed. 00776_ EXIT=FOUND Map ----- +----------------------------------------------------+ | | | | | | | | | | | | | | | | | | | | | ???????????????????????????????????? | | ???????????????????????????????????? | | ???????????????????????????????????? | | ???????????????????????????????????? | | ???????????????????????????????????? | | ????????####???????????????????????? | | ???????##"""##?????????????????????? | | ??????##"!!!"##????????????????????? | | ??????#"" ""#????????????????????? | | ??????# #????????????????????? | | ??????# < ?????????????????????? | | ??????# ?????????????????????? | | ??????# ?????????????????????? | | ???????# ??????????????????????? | | ????????# #??????????????????????? | | ????????# @#??????????????????????? | | ????????# #??????????????????????? | | ????????# #??????????????????????? | | ???????## g##?????????????????? #?? | | ???????# g################# ##? | | ???????# ? | | ???????/ #?? | | ?????? # = #?? | | ????? # ##+####"%"#####???????? | | ????? ?####### ! "#??????????? | | ????" ???????# "#??????????? | | ???"" ???????# ##??????????? | | ?????????????# """ """ #???????????? | | ??#?????????## """ """ #?#?????????? | | ?????????????# """ """ #???????????? | | ????#??#?????# """ """ #???????????? | | ?????????#???# % #???????????? | | ?????????????#+#########???????????? | | ???????????#?#%#??#??????????#?????? | | ????????#????# #??????????#????????? | | ?????????????#=#????#???????????#?#? | | ?#????#????#?# ###########?????????? | | ?????????????# ## """ #?????#?#?? | | #?##########?# ## """"" #?????????? | | #?# ??# ## """"" #????###### | +----------------------------------------------------+ Best States ------------- Heat Dissipation 25 Energy Generation 10 Energy Capacity 250 Matter Stores 300 Matter Capacity 300 Sight Range 16 Terrain Scan Range 16 Terrain Scan Density 10 Evasion (%) 55 Item Schematics ----------------- None Robot Schematics ------------------ None Fabricated ------------ Nothing Alien Tech Used ----------------- None Achievements -------------- None Challenges ------------ None Game ------ Seed DamperEfficiencySpoofer Manual? 0 Play Time 00:17:43 Cumulative 273.6 hours Start 2024.06.25 @ 15:04:59 End 2024.06.25 @ 15:23:45 Sessions 1 Manual Loads 0 Difficulty Rogue Special Mode None Game No. 153 Rogue 153 Adventurer 0 Explorer 0 Win Type - Total 1 Types 1/0/0/0/0/0/0/0/0 Lore% 40 Gallery% 58 Achievement% 31 Wizard Run 0 Options --------- Layout 0 ASCII 0 Keyboard 0 Movement Mouse Keybinds 0 Fullscreen 2 Font 18/SmallcapsGlow Map View 76x50 Zoom Use 0% Tactical HUD 1 Map Filters NONE Filters NONE Steam 1 RUN: 62b33c98-4306-4c4e-b215-46f6d77addb8